[Event "Titled Tuesday Blitz August 1 Early 2023"]
[White "Alamzhi21"]
[Black "Yashmetov, Mikhail"]
[BlackFideId "24198900"]
[WhiteElo "2654"]
[BlackElo "2466"]
[Result "0-1"]
[Round "11"]
[TimeControl "180+1"]
[Date "2023.08.01"]
[WhiteClock "0:00:00"]
[BlackClock "0:00:06"]
[Board "84"]

1. c4 {[%clk 0:03:00]}  Nf6 {[%clk 0:02:59]} 2. g3 {[%clk 0:02:59]}  g6 {[%clk 0:02:59]} 3. Bg2 {[%clk 0:03:00]}  Bg7 {[%clk 0:03:00]} 4. e4 {[%clk 0:03:00]}  d6 {[%clk 0:03:00]} 5. Nc3 {[%clk 0:02:58]}  O-O {[%clk 0:03:01]} 6. Nge2 {[%clk 0:02:58]}  c5 {[%clk 0:02:46]} 7. O-O {[%clk 0:02:57]}  Nc6 {[%clk 0:02:47]} 8. d3 {[%clk 0:02:57]}  a6 {[%clk 0:02:42]} 9. h3 {[%clk 0:02:56]}  Rb8 {[%clk 0:02:41]} 10. a4 {[%clk 0:02:55]}  Ne8 {[%clk 0:02:37]} 11. f4 {[%clk 0:02:55]}  Nc7 {[%clk 0:02:25]} 12. Kh2 {[%clk 0:02:49]}  b5 {[%clk 0:02:23]} 13. axb5 {[%clk 0:02:50]}  axb5 {[%clk 0:02:23]} 14. e5 {[%clk 0:02:46]}  Bd7 {[%clk 0:02:10]} 15. exd6 {[%clk 0:02:36]}  exd6 {[%clk 0:02:11]} 16. cxb5 {[%clk 0:02:21]}  Nxb5 {[%clk 0:02:11]} 17. Nxb5 {[%clk 0:02:22]}  Rxb5 {[%clk 0:02:12]} 18. Nc3 {[%clk 0:02:23]}  Rb8 {[%clk 0:02:08]} 19. Ra6 {[%clk 0:02:20]}  Qc8 {[%clk 0:02:06]} 20. Ra2 {[%clk 0:02:14]}  Be6 {[%clk 0:02:03]} 21. Ra3 {[%clk 0:02:03]}  Re8 {[%clk 0:01:59]} 22. Re1 {[%clk 0:02:00]}  Nd4 {[%clk 0:01:44]} 23. Qa4 {[%clk 0:01:50]}  Bd7 {[%clk 0:01:27]} 24. Rxe8+ {[%clk 0:01:48]}  Qxe8 {[%clk 0:01:28]} 25. Qd1 {[%clk 0:01:47]}  Bc6 {[%clk 0:01:18]} 26. Nd5 {[%clk 0:01:44]}  Qe6 {[%clk 0:01:16]} 27. Nc7 {[%clk 0:01:38]}  Qd7 {[%clk 0:01:10]} 28. Nd5 {[%clk 0:01:37]}  Qb7 {[%clk 0:01:10]} 29. Ne3 {[%clk 0:01:31]}  Re8 {[%clk 0:01:09]} 30. Bxc6 {[%clk 0:01:27]}  Qxc6 {[%clk 0:01:10]} 31. Qa4 {[%clk 0:01:11]}  Qxa4 {[%clk 0:00:57]} 32. Rxa4 {[%clk 0:01:12]}  Nb3 {[%clk 0:00:57]} 33. Nc4 {[%clk 0:01:04]}  Nxc1 {[%clk 0:00:57]} 34. Nxd6 {[%clk 0:01:05]}  Re2+ {[%clk 0:00:57]} 35. Kh1 {[%clk 0:01:05]}  Nxd3 {[%clk 0:00:57]} 36. Ra7 {[%clk 0:01:02]}  Bd4 {[%clk 0:00:53]} 37. Nxf7 {[%clk 0:01:00]}  Nf2+ {[%clk 0:00:49]} 38. Kg2 {[%clk 0:01:00]}  Nd3+ {[%clk 0:00:33]} 39. Kf3 {[%clk 0:00:59]}  Re3+ {[%clk 0:00:34]} 40. Kg4 {[%clk 0:00:57]}  Nf2+ {[%clk 0:00:32]} 41. Kh4 {[%clk 0:00:36]}  Bf6+ {[%clk 0:00:31]} 42. Ng5 {[%clk 0:00:36]}  h6 {[%clk 0:00:32]} 43. Ra6 {[%clk 0:00:35]}  hxg5+ {[%clk 0:00:30]} 44. fxg5 {[%clk 0:00:35]}  Re4+ {[%clk 0:00:28]} 45. g4 {[%clk 0:00:35]}  Bxb2 {[%clk 0:00:17]} 46. Rxg6+ {[%clk 0:00:36]}  Kh7 {[%clk 0:00:17]} 47. Rc6 {[%clk 0:00:33]}  Bd4 {[%clk 0:00:17]} 48. Rc7+ {[%clk 0:00:24]}  Kg6 {[%clk 0:00:16]} 49. Rc6+ {[%clk 0:00:23]}  Kh7 {[%clk 0:00:17]} 50. Rc7+ {[%clk 0:00:24]}  Kg8 {[%clk 0:00:17]} 51. g6 {[%clk 0:00:20]}  Re5 {[%clk 0:00:12]} 52. g5 {[%clk 0:00:17]}  Ne4 {[%clk 0:00:08]} 53. Kh5 {[%clk 0:00:12]}  Nd6 {[%clk 0:00:08]} 54. Rd7 {[%clk 0:00:09]}  Nf5 {[%clk 0:00:06]} 55. Rd8+ {[%clk 0:00:08]}  Kg7 {[%clk 0:00:07]} 56. Rd7+ {[%clk 0:00:09]}  Re7 {[%clk 0:00:07]} 57. Rd5 {[%clk 0:00:05]}  Ng3+ {[%clk 0:00:07]} 58. Kg4 {[%clk 0:00:06]}  Ne4 {[%clk 0:00:07]} 59. Rd8 {[%clk 0:00:04]}  Kxg6 {[%clk 0:00:07]} 60. h4 {[%clk 0:00:04]}  Nf2+ {[%clk 0:00:07]} 61. Kf3 {[%clk 0:00:04]}  Rf7+ {[%clk 0:00:07]} 62. Kg2 {[%clk 0:00:05]}  Ne4 {[%clk 0:00:06]} 63. Re8 {[%clk 0:00:04]}  Nxg5 {[%clk 0:00:06]} 64. hxg5 {[%clk 0:00:04]}  Kxg5 {[%clk 0:00:07]} 65. Re5+ {[%clk 0:00:00]}  Bxe5 {[%clk 0:00:06]} 0-1


[Site "https://www.chess.com"]

[Event "Titled Tuesday Blitz August 1 Early 2023"]
[White "Rodchenkov, Sergey D."]
[Black "Karamsetty, Jeevan"]
[WhiteFideId "4168712"]
[BlackFideId "2025337"]
[WhiteElo "2501"]
[BlackElo "2567"]
[Result "1-0"]
[Round "11"]
[TimeControl "180+1"]
[Date "2023.08.01"]
[WhiteClock "0:00:15"]
[BlackClock "0:00:11"]
[Board "87"]

1. e4 {[%clk 0:03:00]}  g6 {[%clk 0:02:57]} 2. d4 {[%clk 0:03:00]}  d6 {[%clk 0:02:55]} 3. Nc3 {[%clk 0:03:01]}  Bg7 {[%clk 0:02:55]} 4. Be3 {[%clk 0:03:01]}  a6 {[%clk 0:02:56]} 5. h4 {[%clk 0:03:01]}  h5 {[%clk 0:02:55]} 6. Qd2 {[%clk 0:03:01]}  b5 {[%clk 0:02:55]} 7. f3 {[%clk 0:03:01]}  Bb7 {[%clk 0:02:49]} 8. Nh3 {[%clk 0:03:01]}  Nd7 {[%clk 0:02:48]} 9. Ng5 {[%clk 0:03:01]}  e6 {[%clk 0:02:45]} 10. a4 {[%clk 0:03:02]}  b4 {[%clk 0:02:44]} 11. Na2 {[%clk 0:03:02]}  c5 {[%clk 0:02:42]} 12. c3 {[%clk 0:03:02]}  a5 {[%clk 0:02:41]} 13. dxc5 {[%clk 0:02:59]}  bxc3 {[%clk 0:02:38]} 14. Nxc3 {[%clk 0:02:56]}  Nxc5 {[%clk 0:02:32]} 15. Bb5+ {[%clk 0:02:42]}  Kf8 {[%clk 0:02:32]} 16. Rd1 {[%clk 0:02:39]}  Ke7 {[%clk 0:02:10]} 17. Bf4 {[%clk 0:02:20]}  e5 {[%clk 0:01:58]} 18. Be3 {[%clk 0:02:15]}  Ne6 {[%clk 0:01:56]} 19. O-O {[%clk 0:02:03]}  Nxg5 {[%clk 0:01:36]} 20. Bxg5+ {[%clk 0:02:02]}  f6 {[%clk 0:01:36]} 21. Be3 {[%clk 0:02:00]}  Bh6 {[%clk 0:01:36]} 22. Qf2 {[%clk 0:01:55]}  Bxe3 {[%clk 0:01:35]} 23. Qxe3 {[%clk 0:01:56]}  Nh6 {[%clk 0:01:32]} 24. Rd3 {[%clk 0:01:50]}  Qc7 {[%clk 0:01:25]} 25. f4 {[%clk 0:01:40]}  Ng4 {[%clk 0:01:23]} 26. Qg3 {[%clk 0:01:38]}  Rad8 {[%clk 0:01:16]} 27. Kh1 {[%clk 0:01:35]}  Qc5 {[%clk 0:01:05]} 28. Qe1 {[%clk 0:01:21]}  Rhf8 {[%clk 0:00:40]} 29. Qd2 {[%clk 0:01:12]}  f5 {[%clk 0:00:36]} 30. fxe5 {[%clk 0:01:04]}  Nxe5 {[%clk 0:00:27]} 31. Qg5+ {[%clk 0:01:00]}  Ke6 {[%clk 0:00:11]} 32. exf5+ {[%clk 0:00:20]}  gxf5 {[%clk 0:00:11]} 33. Rg3 {[%clk 0:00:15]}  Rf6 {[%clk 0:00:09]} 34. Bd3 {[%clk 0:00:09]}  Nxd3 {[%clk 0:00:09]} 35. Rxd3 {[%clk 0:00:10]}  Rdf8 {[%clk 0:00:08]} 36. Rfd1 {[%clk 0:00:07]}  Ke7 {[%clk 0:00:06]} 37. Rxd6 {[%clk 0:00:05]}  Qxd6 {[%clk 0:00:06]} 38. Rxd6 {[%clk 0:00:05]}  Kxd6 {[%clk 0:00:07]} 39. Nb5+ {[%clk 0:00:05]}  Ke6 {[%clk 0:00:05]} 40. Qe3+ {[%clk 0:00:06]}  Be4 {[%clk 0:00:04]} 41. Qb6+ {[%clk 0:00:06]}  Kf7 {[%clk 0:00:04]} 42. Qc7+ {[%clk 0:00:06]}  Kg6 {[%clk 0:00:05]} 43. Qg3+ {[%clk 0:00:06]}  Kh6 {[%clk 0:00:05]} 44. Nd6 {[%clk 0:00:07]}  Rg6 {[%clk 0:00:04]} 45. Qf4+ {[%clk 0:00:07]}  Kh7 {[%clk 0:00:04]} 46. Nxe4 {[%clk 0:00:08]}  Rfg8 {[%clk 0:00:03]} 47. Ng5+ {[%clk 0:00:08]}  Kh6 {[%clk 0:00:03]} 48. Ne6+ {[%clk 0:00:07]}  Kh7 {[%clk 0:00:03]} 49. Qxf5 {[%clk 0:00:08]}  Re8 {[%clk 0:00:02]} 50. Nf8+ {[%clk 0:00:08]}  Kg7 {[%clk 0:00:02]} 51. Qxg6+ {[%clk 0:00:07]}  Kxf8 {[%clk 0:00:03]} 52. Qxe8+ {[%clk 0:00:07]}  Kxe8 {[%clk 0:00:04]} 53. Kh2 {[%clk 0:00:07]}  Ke7 {[%clk 0:00:05]} 54. Kh3 {[%clk 0:00:08]}  Kf6 {[%clk 0:00:05]} 55. g4 {[%clk 0:00:09]}  hxg4+ {[%clk 0:00:06]} 56. Kxg4 {[%clk 0:00:10]}  Kg6 {[%clk 0:00:06]} 57. Kf4 {[%clk 0:00:10]}  Kh6 {[%clk 0:00:07]} 58. Ke4 {[%clk 0:00:11]}  Kh5 {[%clk 0:00:08]} 59. Kd5 {[%clk 0:00:12]}  Kxh4 {[%clk 0:00:09]} 60. Kc5 {[%clk 0:00:13]}  Kg5 {[%clk 0:00:10]} 61. Kb5 {[%clk 0:00:14]}  Kf6 {[%clk 0:00:11]} 62. Kxa5 {[%clk 0:00:15]}  Ke7 {[%clk 0:00:12]} 63. Kb6 {[%clk 0:00:16]}  Kd8 {[%clk 0:00:11]} 64. Kb7 {[%clk 0:00:15]} 1-0


[Site "https://www.chess.com"]

[Event "Titled Tuesday Blitz August 1 Early 2023"]
[White "EsmeraldasAnderson03"]
[Black "Palczert, Matyas"]
[BlackFideId "784958"]
[WhiteElo "2445"]
[BlackElo "2544"]
[Result "0-1"]
[Round "11"]
[TimeControl "180+1"]
[Date "2023.08.01"]
[WhiteClock "0:01:06"]
[BlackClock "0:00:10"]
[Board "89"]

1. d4 {[%clk 0:03:00]}  Nf6 {[%clk 0:02:58]} 2. Nf3 {[%clk 0:03:01]}  e6 {[%clk 0:02:56]} 3. c4 {[%clk 0:03:00]}  c5 {[%clk 0:02:54]} 4. d5 {[%clk 0:03:00]}  exd5 {[%clk 0:02:54]} 5. cxd5 {[%clk 0:03:01]}  d6 {[%clk 0:02:54]} 6. Nc3 {[%clk 0:03:02]}  g6 {[%clk 0:02:54]} 7. e4 {[%clk 0:03:02]}  Bg7 {[%clk 0:02:54]} 8. Nd2 {[%clk 0:03:03]}  a6 {[%clk 0:02:40]} 9. a4 {[%clk 0:03:01]}  O-O {[%clk 0:02:40]} 10. Be2 {[%clk 0:03:00]}  Nbd7 {[%clk 0:02:34]} 11. O-O {[%clk 0:03:00]}  Qe7 {[%clk 0:02:31]} 12. Qc2 {[%clk 0:02:59]}  Ne5 {[%clk 0:02:24]} 13. h3 {[%clk 0:02:58]}  g5 {[%clk 0:02:12]} 14. Nc4 {[%clk 0:02:52]}  Nxc4 {[%clk 0:02:09]} 15. Bxc4 {[%clk 0:02:53]}  Nd7 {[%clk 0:02:09]} 16. Bd2 {[%clk 0:02:48]}  Ne5 {[%clk 0:02:07]} 17. Be2 {[%clk 0:02:48]}  f5 {[%clk 0:01:59]} 18. a5 {[%clk 0:02:36]}  g4 {[%clk 0:01:34]} 19. hxg4 {[%clk 0:02:32]}  fxg4 {[%clk 0:01:34]} 20. g3 {[%clk 0:02:27]}  h5 {[%clk 0:01:28]} 21. Bf4 {[%clk 0:02:24]}  h4 {[%clk 0:01:23]} 22. Nd1 {[%clk 0:02:23]}  Nf3+ {[%clk 0:00:44]} 23. Bxf3 {[%clk 0:02:08]}  gxf3 {[%clk 0:00:45]} 24. Ne3 {[%clk 0:02:08]}  hxg3 {[%clk 0:00:32]} 25. fxg3 {[%clk 0:02:05]}  Bd4 {[%clk 0:00:31]} 26. Rxf3 {[%clk 0:02:01]}  Bg4 {[%clk 0:00:30]} 27. Rf2 {[%clk 0:02:00]}  Rxf4 {[%clk 0:00:26]} 28. gxf4 {[%clk 0:01:48]}  Bxe3 {[%clk 0:00:26]} 29. Kf1 {[%clk 0:01:49]}  Bxf2 {[%clk 0:00:21]} 30. Kxf2 {[%clk 0:01:50]}  Qh4+ {[%clk 0:00:20]} 31. Kg1 {[%clk 0:01:47]}  Kf7 {[%clk 0:00:18]} 32. Qh2 {[%clk 0:01:46]}  Bh3 {[%clk 0:00:18]} 33. Kh1 {[%clk 0:01:42]}  Rg8 {[%clk 0:00:17]} 34. Rg1 {[%clk 0:01:07]}  Rxg1+ {[%clk 0:00:17]} 35. Qxg1 {[%clk 0:01:05]}  Bg4+ {[%clk 0:00:15]} 36. Qh2 {[%clk 0:01:06]}  Bf3+ {[%clk 0:00:11]} 37. Kg1 {[%clk 0:01:06]}  Qe1# {[%clk 0:00:10]} 0-1


[Site "https://www.chess.com"]

[Event "Titled Tuesday Blitz August 1 Early 2023"]
[White "Mikhalsky, Vladimir"]
[Black "Shubenkova, Veronika"]
[WhiteFideId "14144352"]
[BlackFideId "44124040"]
[WhiteElo "2399"]
[BlackElo "2512"]
[Result "0-1"]
[Round "11"]
[TimeControl "180+1"]
[Date "2023.08.01"]
[WhiteClock "0:00:08"]
[BlackClock "0:01:40"]
[Board "95"]

1. d4 {[%clk 0:02:03]}  d5 {[%clk 0:02:58]} 2. c4 {[%clk 0:02:02]}  e6 {[%clk 0:02:58]} 3. Nf3 {[%clk 0:02:02]}  f5 {[%clk 0:02:58]} 4. g3 {[%clk 0:01:58]}  Nf6 {[%clk 0:02:59]} 5. Bg2 {[%clk 0:01:57]}  c6 {[%clk 0:02:59]} 6. O-O {[%clk 0:01:52]}  Bd6 {[%clk 0:02:59]} 7. b3 {[%clk 0:01:52]}  O-O {[%clk 0:02:59]} 8. Ba3 {[%clk 0:01:52]}  Bxa3 {[%clk 0:02:58]} 9. Nxa3 {[%clk 0:01:51]}  Qd6 {[%clk 0:02:59]} 10. Qc1 {[%clk 0:01:47]}  Nbd7 {[%clk 0:02:59]} 11. Nc2 {[%clk 0:01:43]}  Ne4 {[%clk 0:02:59]} 12. Qf4 {[%clk 0:01:32]}  Qe7 {[%clk 0:02:59]} 13. h4 {[%clk 0:01:24]}  h6 {[%clk 0:02:54]} 14. Ne5 {[%clk 0:01:16]}  Nxe5 {[%clk 0:02:53]} 15. Qxe5 {[%clk 0:01:16]}  Bd7 {[%clk 0:02:52]} 16. Rad1 {[%clk 0:01:02]}  g5 {[%clk 0:02:50]} 17. hxg5 {[%clk 0:01:02]}  hxg5 {[%clk 0:02:50]} 18. Bxe4 {[%clk 0:00:59]}  fxe4 {[%clk 0:02:49]} 19. Ne3 {[%clk 0:00:59]}  Qg7 {[%clk 0:02:40]} 20. Qxg7+ {[%clk 0:00:57]}  Kxg7 {[%clk 0:02:40]} 21. Ng4 {[%clk 0:00:56]}  Rh8 {[%clk 0:02:28]} 22. Kg2 {[%clk 0:00:55]}  Rag8 {[%clk 0:02:23]} 23. Rh1 {[%clk 0:00:55]}  Be8 {[%clk 0:02:23]} 24. Rxh8 {[%clk 0:00:54]}  Rxh8 {[%clk 0:02:22]} 25. Ne3 {[%clk 0:00:46]}  Kf6 {[%clk 0:02:18]} 26. a4 {[%clk 0:00:42]}  Bf7 {[%clk 0:02:12]} 27. a5 {[%clk 0:00:42]}  a6 {[%clk 0:02:12]} 28. g4 {[%clk 0:00:41]}  Rh4 {[%clk 0:02:09]} 29. Kg3 {[%clk 0:00:42]}  Rh8 {[%clk 0:02:07]} 30. Ra1 {[%clk 0:00:38]}  e5 {[%clk 0:02:06]} 31. dxe5+ {[%clk 0:00:38]}  Kxe5 {[%clk 0:02:06]} 32. cxd5 {[%clk 0:00:37]}  cxd5 {[%clk 0:02:05]} 33. Ra4 {[%clk 0:00:36]}  d4 {[%clk 0:02:03]} 34. Nc4+ {[%clk 0:00:36]}  Bxc4 {[%clk 0:02:03]} 35. Rxc4 {[%clk 0:00:36]}  Rd8 {[%clk 0:02:03]} 36. Rc5+ {[%clk 0:00:25]}  Ke6 {[%clk 0:02:00]} 37. f4 {[%clk 0:00:20]}  d3 {[%clk 0:01:44]} 38. exd3 {[%clk 0:00:18]}  Rxd3+ {[%clk 0:01:42]} 39. Kf2 {[%clk 0:00:16]}  gxf4 {[%clk 0:01:42]} 40. Rc7 {[%clk 0:00:17]}  Rxb3 {[%clk 0:01:41]} 41. Rc8 {[%clk 0:00:16]}  Rb2+ {[%clk 0:01:41]} 42. Ke1 {[%clk 0:00:16]}  Ke5 {[%clk 0:01:41]} 43. Re8+ {[%clk 0:00:16]}  Kd4 {[%clk 0:01:42]} 44. g5 {[%clk 0:00:16]}  Ke3 {[%clk 0:01:42]} 45. Kd1 {[%clk 0:00:16]}  Rd2+ {[%clk 0:01:40]} 46. Kc1 {[%clk 0:00:16]}  Rg2 {[%clk 0:01:40]} 47. Re7 {[%clk 0:00:13]}  f3 {[%clk 0:01:39]} 48. Rxb7 {[%clk 0:00:12]}  f2 {[%clk 0:01:40]} 49. Rb3+ {[%clk 0:00:08]}  Kf4 {[%clk 0:01:40]} 0-1


[Site "https://www.chess.com"]

[Event "Titled Tuesday Blitz August 1 Early 2023"]
[White "Molenda, Marcin"]
[Black "Buscar, Michael"]
[WhiteFideId "1173065"]
[BlackFideId "2603616"]
[WhiteElo "2509"]
[BlackElo "2393"]
[Result "1-0"]
[Round "11"]
[TimeControl "180+1"]
[Date "2023.08.01"]
[WhiteClock "0:00:44"]
[BlackClock "0:00:55"]
[Board "96"]

1. e4 {[%clk 0:03:00]}  c5 {[%clk 0:02:59]} 2. Nc3 {[%clk 0:03:00]}  g6 {[%clk 0:02:57]} 3. f4 {[%clk 0:03:00]}  Bg7 {[%clk 0:02:57]} 4. Nf3 {[%clk 0:02:59]}  Nc6 {[%clk 0:02:57]} 5. a4 {[%clk 0:02:59]}  Nd4 {[%clk 0:02:57]} 6. Bc4 {[%clk 0:02:57]}  e6 {[%clk 0:02:55]} 7. O-O {[%clk 0:02:56]}  Ne7 {[%clk 0:02:55]} 8. e5 {[%clk 0:02:55]}  Nxf3+ {[%clk 0:02:49]} 9. Qxf3 {[%clk 0:02:55]}  O-O {[%clk 0:02:46]} 10. Ne4 {[%clk 0:02:54]}  Rb8 {[%clk 0:02:40]} 11. Qh3 {[%clk 0:02:30]}  f6 {[%clk 0:02:28]} 12. exf6 {[%clk 0:02:25]}  Bxf6 {[%clk 0:02:26]} 13. Nxf6+ {[%clk 0:02:23]}  Rxf6 {[%clk 0:02:27]} 14. d3 {[%clk 0:02:22]}  d5 {[%clk 0:02:26]} 15. Ba2 {[%clk 0:02:19]}  b5 {[%clk 0:02:21]} 16. axb5 {[%clk 0:02:18]}  Rxb5 {[%clk 0:02:21]} 17. c4 {[%clk 0:02:08]}  Ra5 {[%clk 0:02:18]} 18. cxd5 {[%clk 0:02:09]}  exd5 {[%clk 0:02:17]} 19. Qf3 {[%clk 0:02:04]}  Rfa6 {[%clk 0:02:16]} 20. f5 {[%clk 0:01:30]}  Bxf5 {[%clk 0:02:02]} 21. Bg5 {[%clk 0:01:26]}  Rxa2 {[%clk 0:01:23]} 22. Rxa2 {[%clk 0:01:26]}  Rxa2 {[%clk 0:01:23]} 23. Re1 {[%clk 0:01:27]}  Qa5 {[%clk 0:01:24]} 24. Rxe7 {[%clk 0:01:24]}  Ra1+ {[%clk 0:01:18]} 25. Kf2 {[%clk 0:01:24]}  c4 {[%clk 0:01:11]} 26. Qe3 {[%clk 0:01:03]}  Qb6 {[%clk 0:01:02]} 27. Re8+ {[%clk 0:00:48]}  Kf7 {[%clk 0:00:58]} 28. Re7+ {[%clk 0:00:45]}  Kf8 {[%clk 0:00:58]} 29. Bh6+ {[%clk 0:00:42]}  Kg8 {[%clk 0:00:57]} 30. Re8+ {[%clk 0:00:43]}  Kf7 {[%clk 0:00:55]} 31. Rf8# {[%clk 0:00:44]} 1-0


[Site "https://www.chess.com"]

[Event "Titled Tuesday Blitz August 1 Early 2023"]
[White "AndresDelgado77"]
[Black "Malka, Samuel"]
[BlackFideId "20643675"]
[WhiteElo "2350"]
[BlackElo "2507"]
[Result "1-0"]
[Round "11"]
[TimeControl "180+1"]
[Date "2023.08.01"]
[WhiteClock "0:01:55"]
[BlackClock "0:00:18"]
[Board "97"]

1. e4 {[%clk 0:03:00]}  c5 {[%clk 0:03:00]} 2. Nf3 {[%clk 0:03:00]}  Nc6 {[%clk 0:03:00]} 3. b4 {[%clk 0:03:00]}  cxb4 {[%clk 0:02:44]} 4. d4 {[%clk 0:02:59]}  d5 {[%clk 0:02:29]} 5. exd5 {[%clk 0:02:59]}  Qxd5 {[%clk 0:02:30]} 6. c4 {[%clk 0:02:59]}  bxc3 {[%clk 0:01:55]} 7. Nxc3 {[%clk 0:02:59]}  Qa5 {[%clk 0:01:56]} 8. Bd2 {[%clk 0:02:59]}  e6 {[%clk 0:01:55]} 9. d5 {[%clk 0:02:59]}  exd5 {[%clk 0:01:54]} 10. Bb5 {[%clk 0:02:58]}  Bb4 {[%clk 0:01:28]} 11. O-O {[%clk 0:02:58]}  Bxc3 {[%clk 0:01:18]} 12. Bxc6+ {[%clk 0:02:54]}  bxc6 {[%clk 0:01:17]} 13. Qe1+ {[%clk 0:02:54]}  Ne7 {[%clk 0:01:00]} 14. Bxc3 {[%clk 0:02:53]}  Qa3 {[%clk 0:00:55]} 15. Bb4 {[%clk 0:02:52]}  Qxb4 {[%clk 0:00:46]} 16. Qxb4 {[%clk 0:02:50]}  Be6 {[%clk 0:00:46]} 17. Nd4 {[%clk 0:02:44]}  Rc8 {[%clk 0:00:44]} 18. Nxe6 {[%clk 0:02:36]}  fxe6 {[%clk 0:00:45]} 19. Rfe1 {[%clk 0:02:32]}  Kd7 {[%clk 0:00:41]} 20. Rxe6 {[%clk 0:02:21]}  c5 {[%clk 0:00:35]} 21. Qg4 {[%clk 0:02:12]}  Nc6 {[%clk 0:00:24]} 22. Rae1 {[%clk 0:02:05]}  Kc7 {[%clk 0:00:23]} 23. Qxg7+ {[%clk 0:01:56]}  Kb8 {[%clk 0:00:18]} 24. Rxc6 {[%clk 0:01:55]} 1-0


[Site "https://www.chess.com"]

[Event "Titled Tuesday Blitz August 1 Early 2023"]
[White "Preobrazhenska_D2011"]
[Black "Romero Pallares, Daniel"]
[BlackFideId "32025637"]
[WhiteElo "2195"]
[BlackElo "2462"]
[Result "0-1"]
[Round "11"]
[TimeControl "180+1"]
[Date "2023.08.01"]
[WhiteClock "0:00:00"]
[BlackClock "0:00:31"]
[Board "99"]

1. e4 {[%clk 0:02:59]}  g6 {[%clk 0:02:54]} 2. d4 {[%clk 0:02:59]}  Bg7 {[%clk 0:02:54]} 3. Nf3 {[%clk 0:02:59]}  d6 {[%clk 0:02:54]} 4. Be2 {[%clk 0:02:58]}  Nf6 {[%clk 0:02:54]} 5. Nc3 {[%clk 0:02:57]}  O-O {[%clk 0:02:55]} 6. O-O {[%clk 0:02:57]}  Bg4 {[%clk 0:02:55]} 7. h3 {[%clk 0:02:56]}  Bxf3 {[%clk 0:02:55]} 8. Bxf3 {[%clk 0:02:57]}  Nc6 {[%clk 0:02:55]} 9. Be3 {[%clk 0:02:55]}  Re8 {[%clk 0:02:50]} 10. Be2 {[%clk 0:02:54]}  e5 {[%clk 0:02:50]} 11. d5 {[%clk 0:02:54]}  Nd4 {[%clk 0:02:51]} 12. Bd3 {[%clk 0:02:42]}  c5 {[%clk 0:02:50]} 13. f4 {[%clk 0:02:35]}  exf4 {[%clk 0:02:49]} 14. Bxf4 {[%clk 0:02:34]}  Nh5 {[%clk 0:02:49]} 15. Be3 {[%clk 0:02:23]}  Be5 {[%clk 0:02:48]} 16. Nb5 {[%clk 0:02:08]}  Nxb5 {[%clk 0:02:43]} 17. Bxb5 {[%clk 0:02:08]}  Rf8 {[%clk 0:02:43]} 18. Qg4 {[%clk 0:01:58]}  a6 {[%clk 0:02:37]} 19. Bd3 {[%clk 0:01:54]}  Qe7 {[%clk 0:02:31]} 20. Bg5 {[%clk 0:01:49]}  f6 {[%clk 0:02:25]} 21. Bh6 {[%clk 0:01:48]}  Rfe8 {[%clk 0:02:18]} 22. c3 {[%clk 0:01:47]}  b5 {[%clk 0:02:17]} 23. Bd2 {[%clk 0:01:32]}  Rab8 {[%clk 0:02:15]} 24. Rf3 {[%clk 0:01:30]}  a5 {[%clk 0:02:11]} 25. Raf1 {[%clk 0:01:17]}  b4 {[%clk 0:02:11]} 26. cxb4 {[%clk 0:01:11]}  axb4 {[%clk 0:02:11]} 27. b3 {[%clk 0:01:02]}  Ra8 {[%clk 0:02:11]} 28. Bb1 {[%clk 0:01:02]}  Rf8 {[%clk 0:01:49]} 29. Qh4 {[%clk 0:00:57]}  Bd4+ {[%clk 0:01:28]} 30. Kh1 {[%clk 0:00:55]}  Rf7 {[%clk 0:01:24]} 31. g4 {[%clk 0:00:46]}  Ng7 {[%clk 0:01:24]} 32. g5 {[%clk 0:00:38]}  Raf8 {[%clk 0:01:18]} 33. Qg4 {[%clk 0:00:29]}  Nh5 {[%clk 0:01:06]} 34. gxf6 {[%clk 0:00:21]}  Nxf6 {[%clk 0:00:59]} 35. Qg2 {[%clk 0:00:19]}  Nh5 {[%clk 0:00:49]} 36. Bg5 {[%clk 0:00:19]}  Qe5 {[%clk 0:00:43]} 37. Bh4 {[%clk 0:00:15]}  Rf4 {[%clk 0:00:37]} 38. Rxf4 {[%clk 0:00:14]}  Rxf4 {[%clk 0:00:38]} 39. Be1 {[%clk 0:00:07]}  Bc3 {[%clk 0:00:35]} 40. Bxc3 {[%clk 0:00:06]}  Qxc3 {[%clk 0:00:35]} 41. Rd1 {[%clk 0:00:04]}  Qe3 {[%clk 0:00:31]} 42. Qg1 {[%clk 0:00:02]}  Ng3+ {[%clk 0:00:31]} 43. Kh2 {[%clk 0:00:00]}  Rf2+ {[%clk 0:00:31]} 0-1


[Site "https://www.chess.com"]

[Event "Titled Tuesday Blitz August 1 Early 2023"]
[White "Necromon"]
[Black "Fiorito, Joaquin"]
[BlackFideId "180173"]
[WhiteElo "2432"]
[BlackElo "2680"]
[Result "0-1"]
[Round "11"]
[TimeControl "180+1"]
[Date "2023.08.01"]
[WhiteClock "0:01:51"]
[BlackClock "0:02:15"]
[Board "100"]

1. Nf3 {[%clk 0:02:58]}  d5 {[%clk 0:03:00]} 2. b3 {[%clk 0:02:57]}  c5 {[%clk 0:03:00]} 3. Bb2 {[%clk 0:02:54]}  f6 {[%clk 0:03:00]} 4. e3 {[%clk 0:02:52]}  e5 {[%clk 0:03:00]} 5. d4 {[%clk 0:02:52]}  cxd4 {[%clk 0:03:01]} 6. exd4 {[%clk 0:02:51]}  e4 {[%clk 0:03:02]} 7. Nfd2 {[%clk 0:02:52]}  f5 {[%clk 0:03:03]} 8. c4 {[%clk 0:02:51]}  Nf6 {[%clk 0:03:04]} 9. Nc3 {[%clk 0:02:51]}  Na6 {[%clk 0:03:03]} 10. cxd5 {[%clk 0:02:51]}  Nc7 {[%clk 0:03:01]} 11. Bc4 {[%clk 0:02:48]}  Bb4 {[%clk 0:02:58]} 12. O-O {[%clk 0:02:48]}  Bxc3 {[%clk 0:02:58]} 13. Bxc3 {[%clk 0:02:48]}  Ncxd5 {[%clk 0:02:57]} 14. Bb2 {[%clk 0:02:48]}  O-O {[%clk 0:02:58]} 15. Rc1 {[%clk 0:02:40]}  Be6 {[%clk 0:02:56]} 16. Re1 {[%clk 0:02:36]}  Qd7 {[%clk 0:02:55]} 17. Nf1 {[%clk 0:02:36]}  f4 {[%clk 0:02:52]} 18. g3 {[%clk 0:02:34]}  f3 {[%clk 0:02:42]} 19. Ne3 {[%clk 0:02:32]}  Nxe3 {[%clk 0:02:41]} 20. Rxe3 {[%clk 0:02:30]}  Bxc4 {[%clk 0:02:41]} 21. bxc4 {[%clk 0:02:29]}  Rfe8 {[%clk 0:02:36]} 22. d5 {[%clk 0:02:29]}  Ng4 {[%clk 0:02:36]} 23. Rb3 {[%clk 0:02:21]}  Qf7 {[%clk 0:02:28]} 24. Qf1 {[%clk 0:02:11]}  e3 {[%clk 0:02:22]} 25. fxe3 {[%clk 0:01:59]}  f2+ {[%clk 0:02:23]} 26. Kh1 {[%clk 0:01:54]}  Nxe3 {[%clk 0:02:14]} 27. Rxe3 {[%clk 0:01:53]}  Rxe3 {[%clk 0:02:15]} 28. Bd4 {[%clk 0:01:53]}  Qf3+ {[%clk 0:02:14]} 29. Qg2 {[%clk 0:01:51]}  Re1+ {[%clk 0:02:15]} 0-1


[Site "https://www.chess.com"]